[Event "Hull 4NCL GM Norm Tournament"]
[Site "Canham Turner Centre"]
[Date "2022.10.15"]
[Round "7.3"]
[White "Burg, Twan"]
[Black "Wadsworth, Matthew J"]
[Result "1-0"]
[TimeControl "1hr30 + 30sec inc"]
[WhiteElo "2511"]
[BlackElo "2467"]

1. e4 {[%clk 01:30:54]} {[%emt 00:00:05]} e6 {[%clk 01:30:54]} {[%emt
00:00:07]} 2. d4 {[%clk 01:31:15]} {[%emt 00:00:09]} d5 {[%clk 01:31:18]}
{[%emt 00:00:06]} 3. Nd2 {[%clk 01:31:39]} {[%emt 00:00:05]} Be7 {[%clk
01:31:37]} {[%emt 00:00:11]} 4. e5 {[%clk 01:31:35]} {[%emt 00:00:35]} c5
{[%clk 01:31:52]} {[%emt 00:00:15]} 5. c3 {[%clk 01:31:40]} {[%emt 00:00:24]}
cxd4 {[%clk 01:31:14]} {[%emt 00:01:09]} 6. cxd4 {[%clk 01:31:49]} {[%emt
00:00:20]} Qb6 {[%clk 01:31:38]} {[%emt 00:00:08]} 7. Ndf3 {[%clk 01:27:43]}
{[%emt 00:04:36]} Bd7 {[%clk 01:31:21]} {[%emt 00:00:47]} 8. Bd3 {[%clk
01:24:31]} {[%emt 00:03:41]} Bb5 {[%clk 01:24:17]} {[%emt 00:07:34]} 9. Ne2
{[%clk 01:24:50]} {[%emt 00:00:11]} Bb4+ {[%clk 01:01:27]} {[%emt 00:23:20]} 10.
Nc3 {[%clk 01:25:09]} {[%emt 00:00:11]} Bxd3 {[%clk 00:59:47]} {[%emt
00:02:11]} 11. Qxd3 {[%clk 01:25:37]} {[%emt 00:00:02]} Qa6 {[%clk 01:00:01]}
{[%emt 00:00:16]} 12. Qxa6 {[%clk 01:24:58]} {[%emt 00:01:08]} Nxa6 {[%clk
01:00:20]} {[%emt 00:00:11]} 13. Bd2 {[%clk 01:24:53]} {[%emt 00:00:36]} Bxc3
{[%clk 00:57:24]} {[%emt 00:03:26]} 14. Bxc3 {[%clk 01:25:11]} {[%emt
00:00:10]} b5 {[%clk 00:55:54]} {[%emt 00:02:01]} 15. Ke2 {[%clk 01:23:48]}
{[%emt 00:01:54]} Ne7 {[%clk 00:52:20]} {[%emt 00:04:03]} 16. Bd2 {[%clk
01:23:29]} {[%emt 00:00:48]} Kd7 {[%clk 00:41:55]} {[%emt 00:10:56]} 17. h4
{[%clk 01:22:37]} {[%emt 00:01:22]} h5 {[%clk 00:40:31]} {[%emt 00:01:54]} 18.
Rac1 {[%clk 01:22:50]} {[%emt 00:00:16]} b4 {[%clk 00:35:47]} {[%emt 00:05:16]}
19. b3 {[%clk 01:21:40]} {[%emt 00:01:39]} Nf5 {[%clk 00:35:00]} {[%emt
00:01:17]} 20. Kd3 {[%clk 01:18:49]} {[%emt 00:03:21]} f6 {[%clk 00:32:38]}
{[%emt 00:02:53]} 21. Rcg1 {[%clk 01:13:19]} {[%emt 00:05:59]} Rab8 {[%clk
00:30:06]} {[%emt 00:03:04]} 22. g4 {[%clk 01:12:59]} {[%emt 00:00:50]} hxg4
{[%clk 00:30:24]} {[%emt 00:00:12]} 23. Rxg4 {[%clk 01:13:28]} {[%emt
00:00:02]} Ke7 {[%clk 00:29:21]} {[%emt 00:01:32]} 24. h5 {[%clk 01:12:35]}
{[%emt 00:01:23]} Kf7 {[%clk 00:29:23]} {[%emt 00:00:28]} 25. h6 {[%clk
01:11:39]} {[%emt 00:01:26]} Rbc8 {[%clk 00:23:35]} {[%emt 00:06:18]} 26. Rhg1
{[%clk 01:10:01]} {[%emt 00:02:08]} gxh6 {[%clk 00:16:39]} {[%emt 00:07:26]} 27.
exf6 {[%clk 01:09:50]} {[%emt 00:00:41]} Kxf6 {[%clk 00:16:47]} {[%emt
00:00:23]} 28. Rg6+ {[%clk 01:06:46]} {[%emt 00:03:33]} Ke7 {[%clk 00:16:46]}
{[%emt 00:00:32]} 29. Re1 {[%clk 01:06:45]} {[%emt 00:00:30]} Rc6 {[%clk
00:15:49]} {[%emt 00:01:27]} 30. Ne5 {[%clk 01:07:02]} {[%emt 00:00:13]} Rb6
{[%clk 00:16:03]} {[%emt 00:00:16]} 31. Rc1 {[%clk 01:07:08]} {[%emt 00:00:24]}
Re8 {[%clk 00:04:36]} {[%emt 00:11:57]} 32. Bxh6 {[%clk 01:05:33]} {[%emt
00:02:05]} Nxh6 {[%clk 00:04:31]} {[%emt 00:00:35]} 33. Rxh6 {[%clk 01:05:56]}
{[%emt 00:00:06]} Nb8 {[%clk 00:03:24]} {[%emt 00:01:39]} 34. Rh7+ {[%clk
01:02:38]} {[%emt 00:03:48]} Kd8 {[%clk 00:03:49]} {[%emt 00:00:05]} 35. Rhc7
{[%clk 01:02:30]} {[%emt 00:00:38]} Rf8 {[%clk 00:03:39]} {[%emt 00:00:40]} 36.
Rc8+ {[%clk 01:02:50]} {[%emt 00:00:10]} 1-0

[Event "Hull 4NCL GM Norm Tournament"]
[Site "Canham Turner Centre"]
[Date "2022.10.15"]
[Round "7.4"]
[White "Royal, Shreyas"]
[Black "Willow, Jonah B"]
[Result "1/2-1/2"]
[TimeControl "1hr30 + 30sec inc"]
[WhiteElo "2431"]
[BlackElo "2395"]

1. d4 {[%clk 01:30:57]} {[%emt 00:00:02]} Nf6 {[%clk 01:30:54]} {[%emt
00:00:06]} 2. c4 {[%clk 01:31:24]} {[%emt 00:00:04]} e6 {[%clk 01:31:20]}
{[%emt 00:00:04]} 3. Nf3 {[%clk 01:31:50]} {[%emt 00:00:03]} d5 {[%clk
01:31:46]} {[%emt 00:00:04]} 4. g3 {[%clk 01:32:17]} {[%emt 00:00:03]} Bb4+
{[%clk 01:32:00]} {[%emt 00:00:15]} 5. Bd2 {[%clk 01:32:40]} {[%emt 00:00:07]}
Be7 {[%clk 01:32:26]} {[%emt 00:00:05]} 6. Bg2 {[%clk 01:32:50]} {[%emt
00:00:19]} O-O {[%clk 01:32:50]} {[%emt 00:00:06]} 7. O-O {[%clk 01:33:17]}
{[%emt 00:00:03]} dxc4 {[%clk 01:33:15]} {[%emt 00:00:05]} 8. Qc2 {[%clk
01:32:42]} {[%emt 00:01:05]} b5 {[%clk 01:33:39]} {[%emt 00:00:06]} 9. Ne5
{[%clk 01:24:19]} {[%emt 00:08:53]} Nd5 {[%clk 01:33:38]} {[%emt 00:00:30]} 10.
a4 {[%clk 01:23:01]} {[%emt 00:01:49]} f6 {[%clk 01:33:51]} {[%emt 00:00:17]}
11. Nf3 {[%clk 01:21:49]} {[%emt 00:01:41]} c6 {[%clk 01:34:09]} {[%emt
00:00:12]} 12. Rd1 {[%clk 01:21:03]} {[%emt 00:01:16]} Na6 {[%clk 01:26:18]}
{[%emt 00:08:21]} 13. Nc3 {[%clk 01:15:06]} {[%emt 00:06:27]} Rb8 {[%clk
01:18:26]} {[%emt 00:08:22]} 14. h4 {[%clk 01:02:55]} {[%emt 00:12:40]} Nab4
{[%clk 01:12:18]} {[%emt 00:06:38]} 15. Qb1 {[%clk 01:02:51]} {[%emt 00:00:34]}
a5 {[%clk 01:12:04]} {[%emt 00:00:44]} 16. h5 {[%clk 01:01:07]} {[%emt
00:02:14]} Bd7 {[%clk 01:02:15]} {[%emt 00:10:19]} 17. h6 {[%clk 00:49:21]}
{[%emt 00:12:16]} Be8 {[%clk 00:42:40]} {[%emt 00:20:05]} 18. hxg7 {[%clk
00:48:43]} {[%emt 00:01:08]} Kxg7 {[%clk 00:42:34]} {[%emt 00:00:36]} 19. Nh4
{[%clk 00:37:43]} {[%emt 00:11:30]} Bg6 {[%clk 00:37:07]} {[%emt 00:05:57]} 20.
Nxg6 {[%clk 00:36:56]} {[%emt 00:01:17]} hxg6 {[%clk 00:37:36]} {[%emt
00:00:01]} 21. axb5 {[%clk 00:36:07]} {[%emt 00:01:19]} cxb5 {[%clk 00:34:57]}
{[%emt 00:03:09]} 22. e4 {[%clk 00:36:32]} {[%emt 00:00:05]} Nxc3 {[%clk
00:33:50]} {[%emt 00:01:37]} 23. bxc3 {[%clk 00:36:34]} {[%emt 00:00:28]} Nd3
{[%clk 00:32:58]} {[%emt 00:01:22]} 24. Bf1 {[%clk 00:36:55]} {[%emt 00:00:09]}
b4 {[%clk 00:32:55]} {[%emt 00:00:33]} 25. Bxd3 {[%clk 00:37:01]} {[%emt
00:00:24]} bxc3 {[%clk 00:19:08]} {[%emt 00:14:17]} 26. Bh6+ {[%clk 00:37:23]}
{[%emt 00:00:07]} Kxh6 {[%clk 00:19:22]} {[%emt 00:00:16]} 27. Qc1+ {[%clk
00:37:49]} {[%emt 00:00:05]} Kg7 {[%clk 00:19:19]} {[%emt 00:00:33]} 28. Bxc4
{[%clk 00:38:14]} {[%emt 00:00:05]} Rb4 {[%clk 00:18:50]} {[%emt 00:00:58]} 29.
Bxe6 {[%clk 00:33:13]} {[%emt 00:05:30]} Rxd4 {[%clk 00:19:10]} {[%emt
00:00:10]} 30. Bd5 {[%clk 00:32:33]} {[%emt 00:01:11]} Rxd1+ {[%clk 00:18:57]}
{[%emt 00:00:43]} 31. Qxd1 {[%clk 00:32:56]} {[%emt 00:00:06]} Qc7 {[%clk
00:15:47]} {[%emt 00:03:40]} 32. Qc2 {[%clk 00:29:55]} {[%emt 00:03:31]} Rh8
{[%clk 00:09:46]} {[%emt 00:06:31]} 33. Rd1 {[%clk 00:28:47]} {[%emt 00:01:38]}
Qc8 {[%clk 00:09:01]} {[%emt 00:01:16]} 34. Qe2 {[%clk 00:25:38]} {[%emt
00:03:38]} Rh5 {[%clk 00:08:12]} {[%emt 00:01:19]} 35. Bb3 {[%clk 00:24:07]}
{[%emt 00:02:02]} Bc5 {[%clk 00:03:49]} {[%emt 00:04:53]} 36. Qd3 {[%clk
00:15:23]} {[%emt 00:09:14]} Kh6 {[%clk 00:03:20]} {[%emt 00:00:59]} 37. Qf3
{[%clk 00:14:24]} {[%emt 00:01:29]} Qh3 {[%clk 00:00:43]} {[%emt 00:03:07]} 38.
Qf4+ {[%clk 00:14:29]} {[%emt 00:00:25]} Kg7 {[%clk 00:00:45]} {[%emt
00:00:28]} 39. Qc7+ {[%clk 00:14:55]} {[%emt 00:00:05]} Kh6 {[%clk 00:01:10]}
{[%emt 00:00:04]} 40. Qf4+ {[%clk 00:15:21]} {[%emt 00:00:04]} Kg7 {[%clk
00:00:32]} {[%emt 00:01:08]} 41. Qc7+ {[%clk 00:15:45]} {[%emt 00:00:05]} Kh6
{[%clk 00:00:58]} {[%emt 00:00:05]} 1/2-1/2

[Event "Hull 4NCL GM Norm Tournament"]
[Site "Canham Turner Centre"]
[Date "2022.10.15"]
[Round "7.5"]
[White "Turner, Matthew J"]
[Black "Harvey, Marcus R"]
[Result "1/2-1/2"]
[TimeControl "1hr30 + 30sec inc"]
[WhiteElo "2461"]
[BlackElo "2463"]

1. d4 {[%clk 01:30:51]} {[%emt 00:00:08]} Nf6 {[%clk 01:30:34]} {[%emt
00:00:26]} 2. Nf3 {[%clk 01:30:55]} {[%emt 00:00:26]} e6 {[%clk 01:30:37]}
{[%emt 00:00:28]} 3. Bg5 {[%clk 01:29:28]} {[%emt 00:01:57]} h6 {[%clk
01:30:01]} {[%emt 00:01:06]} 4. Bxf6 {[%clk 01:26:41]} {[%emt 00:03:16]} Qxf6
{[%clk 01:29:58]} {[%emt 00:00:32]} 5. e4 {[%clk 01:26:52]} {[%emt 00:00:19]}
d5 {[%clk 01:28:55]} {[%emt 00:01:34]} 6. Nc3 {[%clk 01:23:22]} {[%emt
00:04:00]} Bb4 {[%clk 01:25:05]} {[%emt 00:04:20]} 7. Bd3 {[%clk 01:23:21]}
{[%emt 00:00:31]} dxe4 {[%clk 01:17:05]} {[%emt 00:08:30]} 8. Bxe4 {[%clk
01:23:36]} {[%emt 00:00:16]} O-O {[%clk 01:15:26]} {[%emt 00:02:09]} 9. O-O
{[%clk 01:22:48]} {[%emt 00:01:17]} Rd8 {[%clk 01:13:04]} {[%emt 00:02:52]} 10.
Qe2 {[%clk 01:18:25]} {[%emt 00:04:53]} Nd7 {[%clk 01:10:45]} {[%emt 00:02:49]}
11. Rad1 {[%clk 01:11:35]} {[%emt 00:07:20]} Qe7 {[%clk 01:05:01]} {[%emt
00:06:13]} 12. Ne5 {[%clk 01:05:54]} {[%emt 00:06:11]} Nf6 {[%clk 01:01:25]}
{[%emt 00:04:07]} 13. Bf3 {[%clk 01:04:15]} {[%emt 00:02:09]} c6 {[%clk
00:57:21]} {[%emt 00:04:34]} 14. Ne4 {[%clk 01:02:30]} {[%emt 00:02:15]} Bd7
{[%clk 00:52:46]} {[%emt 00:05:05]} 15. Nxf6+ {[%clk 00:45:08]} {[%emt
00:17:52]} Qxf6 {[%clk 00:52:06]} {[%emt 00:01:10]} 16. Rd3 {[%clk 00:44:55]}
{[%emt 00:00:43]} Be8 {[%clk 00:49:25]} {[%emt 00:03:11]} 17. Bh5 {[%clk
00:38:02]} {[%emt 00:07:23]} g6 {[%clk 00:48:27]} {[%emt 00:01:28]} 18. Bf3
{[%clk 00:31:47]} {[%emt 00:06:45]} Bf8 {[%clk 00:45:30]} {[%emt 00:03:27]} 19.
Rfd1 {[%clk 00:29:12]} {[%emt 00:03:05]} Bg7 {[%clk 00:43:35]} {[%emt
00:02:25]} 20. g3 {[%clk 00:28:33]} {[%emt 00:01:09]} Qe7 {[%clk 00:42:00]}
{[%emt 00:02:05]} 21. Kg2 {[%clk 00:26:05]} {[%emt 00:02:59]} Qc7 {[%clk
00:40:23]} {[%emt 00:02:06]} 22. h4 {[%clk 00:25:13]} {[%emt 00:01:22]} Rd6
{[%clk 00:36:31]} {[%emt 00:04:22]} 23. Nc4 {[%clk 00:23:41]} {[%emt 00:02:01]}
Rd7 {[%clk 00:36:24]} {[%emt 00:00:37]} 24. Ne5 {[%clk 00:23:44]} {[%emt
00:00:27]} Rd6 {[%clk 00:36:14]} {[%emt 00:00:40]} 25. Nc4 {[%clk 00:23:29]}
{[%emt 00:00:46]} Rd7 {[%clk 00:36:10]} {[%emt 00:00:34]} 26. Ne5 {[%clk
00:23:34]} {[%emt 00:00:25]} Re7 {[%clk 00:33:35]} {[%emt 00:03:05]} 27. b4
{[%clk 00:15:51]} {[%emt 00:08:13]} Rd8 {[%clk 00:30:54]} {[%emt 00:03:10]} 28.
a3 {[%clk 00:15:17]} {[%emt 00:01:04]} a5 {[%clk 00:29:45]} {[%emt 00:01:39]}
29. c4 {[%clk 00:13:06]} {[%emt 00:02:41]} axb4 {[%clk 00:29:19]} {[%emt
00:00:57]} 30. axb4 {[%clk 00:13:32]} {[%emt 00:00:04]} Qb6 {[%clk 00:29:19]}
{[%emt 00:00:29]} 31. Qe1 {[%clk 00:11:18]} {[%emt 00:02:44]} Ra8 {[%clk
00:24:55]} {[%emt 00:04:54]} 32. c5 {[%clk 00:10:47]} {[%emt 00:01:01]} Qa6
{[%clk 00:21:50]} {[%emt 00:03:35]} 33. Be2 {[%clk 00:10:52]} {[%emt 00:00:25]}
Qa7 {[%clk 00:13:59]} {[%emt 00:08:21]} 34. Nc4 {[%clk 00:10:39]} {[%emt
00:00:43]} Rd8 {[%clk 00:13:36]} {[%emt 00:00:53]} 35. Bf3 {[%clk 00:10:21]}
{[%emt 00:00:48]} Red7 {[%clk 00:12:53]} {[%emt 00:01:13]} 36. Qe3 {[%clk
00:05:46]} {[%emt 00:05:04]} Qb8 {[%clk 00:11:58]} {[%emt 00:01:25]} 37. Nb6
{[%clk 00:05:58]} {[%emt 00:00:19]} Re7 {[%clk 00:11:37]} {[%emt 00:00:51]} 38.
d5 {[%clk 00:05:44]} {[%emt 00:00:44]} cxd5 {[%clk 00:11:53]} {[%emt 00:00:14]}
39. Rxd5 {[%clk 00:05:59]} {[%emt 00:00:15]} Rxd5 {[%clk 00:11:33]} {[%emt
00:00:49]} 40. Rxd5 {[%clk 00:06:20]} {[%emt 00:00:09]} Bb5 {[%clk 00:07:52]}
{[%emt 00:04:11]} 41. Rd6 {[%clk 00:06:20]} {[%emt 00:00:29]} Re8 {[%clk
00:06:51]} {[%emt 00:01:31]} 42. Qe4 {[%clk 00:05:22]} {[%emt 00:01:28]} Bc3
{[%clk 00:06:59]} {[%emt 00:00:22]} 43. Nd7 {[%clk 00:03:16]} {[%emt 00:02:36]}
Qa7 {[%clk 00:04:16]} {[%emt 00:03:14]} 44. Qxb7 {[%clk 00:03:08]} {[%emt
00:00:38]} Qxb7 {[%clk 00:03:34]} {[%emt 00:01:12]} 45. Bxb7 {[%clk 00:03:33]}
{[%emt 00:00:05]} Kg7 {[%clk 00:03:26]} {[%emt 00:00:37]} 46. Bc6 {[%clk
00:00:36]} {[%emt 00:03:27]} Bxc6+ {[%clk 00:03:31]} {[%emt 00:00:25]} 47. Rxc6
{[%clk 00:01:01]} {[%emt 00:00:05]} Rd8 {[%clk 00:02:20]} {[%emt 00:01:41]} 48.
Rc7 {[%clk 00:00:43]} {[%emt 00:00:48]} Bxb4 {[%clk 00:02:45]} {[%emt
00:00:05]} 49. Rb7 {[%clk 00:00:34]} {[%emt 00:00:39]} Rxd7 {[%clk 00:01:56]}
{[%emt 00:01:19]} 50. Rxd7 {[%clk 00:00:59]} {[%emt 00:00:05]} Bxc5 {[%clk
00:02:19]} {[%emt 00:00:06]} 51. f4 {[%clk 00:01:07]} {[%emt 00:00:22]} h5
{[%clk 00:02:37]} {[%emt 00:00:12]} 1/2-1/2

[ePGN "0.1;DGT LiveChess/2.2.5"]